[Event "Titled Tuesday Blitz March 21 Early 2023"]
[White "Korchmar, Vasiliy"]
[Black "Le, Tuan Minh"]
[WhiteFideId "24131750"]
[BlackFideId "12401153"]
[WhiteElo "2370"]
[BlackElo "2558"]
[Result "0-1"]
[Round "02"]
[TimeControl "180+2"]
[Date "2023.03.21"]
[WhiteClock "0:00:01"]
[BlackClock "0:00:05"]

1. e4 {[%clk 0:03:00]}  c5 {[%clk 0:02:59]} 2. Nf3 {[%clk 0:03:00]}  Nf6 {[%clk 0:02:59]} 3. e5 {[%clk 0:03:00]}  Nd5 {[%clk 0:02:59]} 4. Nc3 {[%clk 0:03:00]}  e6 {[%clk 0:02:59]} 5. Nxd5 {[%clk 0:02:43]}  exd5 {[%clk 0:03:00]} 6. d4 {[%clk 0:02:43]}  Nc6 {[%clk 0:03:00]} 7. dxc5 {[%clk 0:02:32]}  Bxc5 {[%clk 0:03:01]} 8. Bd3 {[%clk 0:02:32]}  d6 {[%clk 0:03:02]} 9. exd6 {[%clk 0:02:30]}  Qxd6 {[%clk 0:03:03]} 10. O-O {[%clk 0:02:26]}  O-O {[%clk 0:03:02]} 11. c3 {[%clk 0:02:15]}  Re8 {[%clk 0:02:55]} 12. Be3 {[%clk 0:01:56]}  Bxe3 {[%clk 0:02:43]} 13. fxe3 {[%clk 0:01:57]}  h6 {[%clk 0:02:17]} 14. Qd2 {[%clk 0:01:52]}  Bg4 {[%clk 0:02:11]} 15. Nd4 {[%clk 0:01:51]}  Re7 {[%clk 0:02:06]} 16. Rf4 {[%clk 0:01:49]}  Bd7 {[%clk 0:02:05]} 17. Raf1 {[%clk 0:01:48]}  Rae8 {[%clk 0:02:03]} 18. R1f3 {[%clk 0:01:43]}  Ne5 {[%clk 0:01:38]} 19. Rg3 {[%clk 0:01:37]}  Nxd3 {[%clk 0:01:35]} 20. Qxd3 {[%clk 0:01:35]}  Rxe3 {[%clk 0:01:33]} 21. Rxe3 {[%clk 0:01:23]}  Qxf4 {[%clk 0:01:32]} 22. Rxe8+ {[%clk 0:01:21]}  Bxe8 {[%clk 0:01:33]} 23. Qe2 {[%clk 0:01:00]}  Bd7 {[%clk 0:01:27]} 24. h3 {[%clk 0:00:56]}  Qe4 {[%clk 0:01:06]} 25. Kf2 {[%clk 0:00:44]}  f5 {[%clk 0:01:01]} 26. g3 {[%clk 0:00:35]}  Kf7 {[%clk 0:00:43]} 27. h4 {[%clk 0:00:34]}  Kf6 {[%clk 0:00:41]} 28. Qe3 {[%clk 0:00:19]}  g5 {[%clk 0:00:35]} 29. hxg5+ {[%clk 0:00:18]}  hxg5 {[%clk 0:00:36]} 30. Nf3 {[%clk 0:00:16]}  Qxe3+ {[%clk 0:00:36]} 31. Kxe3 {[%clk 0:00:17]}  Bb5 {[%clk 0:00:29]} 32. Nd4 {[%clk 0:00:08]}  Bf1 {[%clk 0:00:30]} 33. a4 {[%clk 0:00:04]}  Bg2 {[%clk 0:00:27]} 34. a5 {[%clk 0:00:04]}  Ke5 {[%clk 0:00:26]} 35. Ne2 {[%clk 0:00:01]}  Be4 {[%clk 0:00:21]} 36. b4 {[%clk 0:00:01]}  Bg2 {[%clk 0:00:15]} 37. Nd4 {[%clk 0:00:01]}  f4+ {[%clk 0:00:12]} 38. gxf4+ {[%clk 0:00:02]}  gxf4+ {[%clk 0:00:13]} 39. Kf2 {[%clk 0:00:03]}  Be4 {[%clk 0:00:14]} 40. Nb5 {[%clk 0:00:03]}  a6 {[%clk 0:00:12]} 41. Nd4 {[%clk 0:00:03]}  Bd3 {[%clk 0:00:11]} 42. Nb3 {[%clk 0:00:04]}  Bb5 {[%clk 0:00:07]} 43. Nc5 {[%clk 0:00:04]}  Bc6 {[%clk 0:00:08]} 44. Kf3 {[%clk 0:00:04]}  d4+ {[%clk 0:00:08]} 45. Ke2 {[%clk 0:00:03]}  dxc3 {[%clk 0:00:08]} 46. Kd3 {[%clk 0:00:04]}  f3 {[%clk 0:00:09]} 47. Kxc3 {[%clk 0:00:05]}  Bb5 {[%clk 0:00:05]} 48. Nb3 {[%clk 0:00:01]}  f2 {[%clk 0:00:05]} 0-1


[Site "https://www.chess.com"]

[Event "Titled Tuesday Blitz March 21 Early 2023"]
[White "Paravyan, David"]
[Black "Darini, Pouria"]
[WhiteFideId "4194985"]
[BlackFideId "12502200"]
[WhiteElo "2577"]
[BlackElo "2482"]
[Result "1-0"]
[Round "02"]
[TimeControl "180+2"]
[Date "2023.03.21"]
[WhiteClock "0:00:46"]
[BlackClock "0:00:05"]

1. Nf3 {[%clk 0:03:00]}  d5 {[%clk 0:02:56]} 2. d4 {[%clk 0:02:59]}  Nf6 {[%clk 0:02:55]} 3. c4 {[%clk 0:02:59]}  e6 {[%clk 0:02:55]} 4. g3 {[%clk 0:02:59]}  Bb4+ {[%clk 0:02:53]} 5. Bd2 {[%clk 0:02:58]}  a5 {[%clk 0:02:53]} 6. Bg2 {[%clk 0:02:58]}  O-O {[%clk 0:02:51]} 7. Qc1 {[%clk 0:02:58]}  c5 {[%clk 0:02:37]} 8. cxd5 {[%clk 0:02:56]}  cxd4 {[%clk 0:02:37]} 9. Nxd4 {[%clk 0:02:55]}  Qb6 {[%clk 0:02:08]} 10. Nc2 {[%clk 0:02:50]}  exd5 {[%clk 0:01:34]} 11. Nxb4 {[%clk 0:02:48]}  axb4 {[%clk 0:01:35]} 12. O-O {[%clk 0:02:47]}  h6 {[%clk 0:01:36]} 13. Rd1 {[%clk 0:02:45]}  Nc6 {[%clk 0:01:36]} 14. Bxh6 {[%clk 0:01:17]}  gxh6 {[%clk 0:01:13]} 15. Qxh6 {[%clk 0:01:14]}  Qxf2+ {[%clk 0:00:26]} 16. Kh1 {[%clk 0:01:14]}  Qf5 {[%clk 0:00:27]} 17. Rf1 {[%clk 0:01:07]}  Ng4 {[%clk 0:00:27]} 18. Qh4 {[%clk 0:00:58]}  Qh7 {[%clk 0:00:26]} 19. Qg5+ {[%clk 0:00:56]}  Qg7 {[%clk 0:00:25]} 20. Qf4 {[%clk 0:00:55]}  Qe5 {[%clk 0:00:18]} 21. Qc1 {[%clk 0:00:50]}  Ne3 {[%clk 0:00:16]} 22. Rf2 {[%clk 0:00:49]}  Nxg2 {[%clk 0:00:13]} 23. Kxg2 {[%clk 0:00:48]}  Bf5 {[%clk 0:00:14]} 24. Nd2 {[%clk 0:00:48]}  Be4+ {[%clk 0:00:12]} 25. Nxe4 {[%clk 0:00:46]}  Qxe4+ {[%clk 0:00:12]} 26. Kg1 {[%clk 0:00:46]}  Ne7 {[%clk 0:00:07]} 27. Qg5+ {[%clk 0:00:46]}  Ng6 {[%clk 0:00:08]} 28. h4 {[%clk 0:00:47]}  Qe5 {[%clk 0:00:07]} 29. Rf5 {[%clk 0:00:46]}  Qe7 {[%clk 0:00:08]} 30. Rf6 {[%clk 0:00:46]}  Ra6 {[%clk 0:00:03]} 31. Rxg6+ {[%clk 0:00:46]}  Rxg6 {[%clk 0:00:03]} 32. Qxe7 {[%clk 0:00:46]}  Rxg3+ {[%clk 0:00:04]} 33. Kh2 {[%clk 0:00:47]}  Rg6 {[%clk 0:00:05]} 34. Rg1 {[%clk 0:00:46]} 1-0


[Site "https://www.chess.com"]

[Event "Titled Tuesday Blitz March 21 Early 2023"]
[White "Matinian, Nikita"]
[Black "Shimanov, Aleksandr"]
[WhiteFideId "24129100"]
[BlackFideId "4198603"]
[WhiteElo "2422"]
[BlackElo "2631"]
[Result "0-1"]
[Round "02"]
[TimeControl "180+2"]
[Date "2023.03.21"]
[WhiteClock "0:00:02"]
[BlackClock "0:00:47"]

1. e4 {[%clk 0:03:00]}  e6 {[%clk 0:02:58]} 2. Qe2 {[%clk 0:03:01]}  c5 {[%clk 0:02:50]} 3. b3 {[%clk 0:02:57]}  Nc6 {[%clk 0:02:47]} 4. Bb2 {[%clk 0:02:55]}  Nf6 {[%clk 0:02:46]} 5. Nf3 {[%clk 0:02:53]}  Be7 {[%clk 0:02:35]} 6. Nc3 {[%clk 0:02:44]}  Nd4 {[%clk 0:02:23]} 7. Qd3 {[%clk 0:02:43]}  Nc6 {[%clk 0:02:11]} 8. O-O-O {[%clk 0:02:40]}  O-O {[%clk 0:02:09]} 9. Rg1 {[%clk 0:02:37]}  d5 {[%clk 0:02:08]} 10. Kb1 {[%clk 0:02:21]}  d4 {[%clk 0:02:03]} 11. e5 {[%clk 0:01:22]}  Ng4 {[%clk 0:01:41]} 12. Ne4 {[%clk 0:01:21]}  Ngxe5 {[%clk 0:01:40]} 13. Nxe5 {[%clk 0:01:22]}  Nxe5 {[%clk 0:01:41]} 14. Qg3 {[%clk 0:01:22]}  Ng6 {[%clk 0:01:41]} 15. f4 {[%clk 0:01:19]}  Qc7 {[%clk 0:01:30]} 16. Bc4 {[%clk 0:00:57]}  Qxf4 {[%clk 0:01:28]} 17. Qe1 {[%clk 0:00:57]}  Bd7 {[%clk 0:01:26]} 18. g3 {[%clk 0:00:55]}  Qe5 {[%clk 0:01:25]} 19. h4 {[%clk 0:00:55]}  Bc6 {[%clk 0:01:25]} 20. Bd3 {[%clk 0:00:43]}  b5 {[%clk 0:01:09]} 21. h5 {[%clk 0:00:40]}  Qxh5 {[%clk 0:01:07]} 22. Qf2 {[%clk 0:00:35]}  Rad8 {[%clk 0:01:05]} 23. Rh1 {[%clk 0:00:33]}  Qd5 {[%clk 0:01:00]} 24. Rxh7 {[%clk 0:00:19]}  Kxh7 {[%clk 0:00:54]} 25. Qh2+ {[%clk 0:00:19]}  Kg8 {[%clk 0:00:54]} 26. Rh1 {[%clk 0:00:19]}  f5 {[%clk 0:00:55]} 27. Qh7+ {[%clk 0:00:08]}  Kf7 {[%clk 0:00:55]} 28. Rh6 {[%clk 0:00:09]}  Ne5 {[%clk 0:00:49]} 29. Nf2 {[%clk 0:00:02]}  Rh8 {[%clk 0:00:47]} 0-1


[Site "https://www.chess.com"]

[Event "Titled Tuesday Blitz March 21 Early 2023"]
[White "Martinez Reyes, Pedro Ramon"]
[Black "Pranav, V"]
[WhiteFideId "3901807"]
[BlackFideId "25060783"]
[WhiteElo "2340"]
[BlackElo "2500"]
[Result "0-1"]
[Round "02"]
[TimeControl "180+2"]
[Date "2023.03.21"]
[WhiteClock "0:00:12"]
[BlackClock "0:00:08"]

1. e4 {[%clk 0:03:00]}  e5 {[%clk 0:02:59]} 2. Nf3 {[%clk 0:03:01]}  Nc6 {[%clk 0:02:59]} 3. d4 {[%clk 0:03:00]}  exd4 {[%clk 0:02:59]} 4. Nxd4 {[%clk 0:03:01]}  Bc5 {[%clk 0:02:59]} 5. Nxc6 {[%clk 0:03:00]}  Qf6 {[%clk 0:02:59]} 6. Qf3 {[%clk 0:03:00]}  bxc6 {[%clk 0:02:59]} 7. Be2 {[%clk 0:02:58]}  d6 {[%clk 0:02:51]} 8. Nc3 {[%clk 0:02:58]}  Qxf3 {[%clk 0:02:42]} 9. gxf3 {[%clk 0:02:54]}  Ne7 {[%clk 0:02:43]} 10. Rg1 {[%clk 0:02:55]}  O-O {[%clk 0:02:32]} 11. h4 {[%clk 0:02:51]}  f5 {[%clk 0:02:28]} 12. Bg5 {[%clk 0:02:38]}  Ng6 {[%clk 0:01:56]} 13. h5 {[%clk 0:02:36]}  Ne5 {[%clk 0:01:47]} 14. f4 {[%clk 0:02:30]}  Ng4 {[%clk 0:01:38]} 15. Bxg4 {[%clk 0:02:26]}  fxg4 {[%clk 0:01:39]} 16. h6 {[%clk 0:02:27]}  d5 {[%clk 0:01:21]} 17. Na4 {[%clk 0:02:02]}  Bb6 {[%clk 0:01:07]} 18. Nxb6 {[%clk 0:01:56]}  axb6 {[%clk 0:01:08]} 19. exd5 {[%clk 0:01:41]}  cxd5 {[%clk 0:01:09]} 20. Kd2 {[%clk 0:01:37]}  Bf5 {[%clk 0:01:00]} 21. Rae1 {[%clk 0:01:34]}  gxh6 {[%clk 0:00:53]} 22. Bxh6 {[%clk 0:01:31]}  Rf6 {[%clk 0:00:52]} 23. Rh1 {[%clk 0:01:18]}  Rc6 {[%clk 0:00:46]} 24. c3 {[%clk 0:01:17]}  Be4 {[%clk 0:00:40]} 25. Rh4 {[%clk 0:01:14]}  Rxa2 {[%clk 0:00:37]} 26. Rxg4+ {[%clk 0:00:59]}  Rg6 {[%clk 0:00:36]} 27. Rxg6+ {[%clk 0:00:55]}  hxg6 {[%clk 0:00:37]} 28. Kc1 {[%clk 0:00:52]}  Kf7 {[%clk 0:00:37]} 29. Bg5 {[%clk 0:00:48]}  c5 {[%clk 0:00:30]} 30. f3 {[%clk 0:00:47]}  Bxf3 {[%clk 0:00:24]} 31. Re7+ {[%clk 0:00:47]}  Kf8 {[%clk 0:00:24]} 32. Re6 {[%clk 0:00:46]}  Ra1+ {[%clk 0:00:18]} 33. Kd2 {[%clk 0:00:44]}  d4 {[%clk 0:00:18]} 34. cxd4 {[%clk 0:00:28]}  cxd4 {[%clk 0:00:19]} 35. Rxb6 {[%clk 0:00:28]}  Rd1+ {[%clk 0:00:18]} 36. Kc2 {[%clk 0:00:28]}  d3+ {[%clk 0:00:14]} 37. Kc3 {[%clk 0:00:27]}  Be4 {[%clk 0:00:14]} 38. Rd6 {[%clk 0:00:26]}  Rc1+ {[%clk 0:00:11]} 39. Kd2 {[%clk 0:00:18]}  Rc2+ {[%clk 0:00:11]} 40. Ke3 {[%clk 0:00:18]}  Bf5 {[%clk 0:00:10]} 41. b4 {[%clk 0:00:14]}  Rb2 {[%clk 0:00:08]} 42. Rd8+ {[%clk 0:00:10]}  Kf7 {[%clk 0:00:08]} 43. Rb8 {[%clk 0:00:07]}  Re2+ {[%clk 0:00:08]} 44. Kf3 {[%clk 0:00:06]}  Be4+ {[%clk 0:00:08]} 45. Kg3 {[%clk 0:00:05]}  d2 {[%clk 0:00:09]} 46. Rd8 {[%clk 0:00:06]}  Bc2 {[%clk 0:00:07]} 47. f5 {[%clk 0:00:06]}  d1=Q {[%clk 0:00:06]} 48. fxg6+ {[%clk 0:00:06]}  Kxg6 {[%clk 0:00:06]} 49. Rxd1 {[%clk 0:00:07]}  Bxd1 {[%clk 0:00:07]} 50. Bf4 {[%clk 0:00:07]}  Bc2 {[%clk 0:00:07]} 51. Bd6 {[%clk 0:00:07]}  Be4 {[%clk 0:00:07]} 52. Kf4 {[%clk 0:00:07]}  Bd5 {[%clk 0:00:07]} 53. b5 {[%clk 0:00:06]}  Rb2 {[%clk 0:00:07]} 54. Be5 {[%clk 0:00:06]}  Rxb5 {[%clk 0:00:07]} 55. Bd4 {[%clk 0:00:07]}  Rb4 {[%clk 0:00:07]} 56. Ke5 {[%clk 0:00:08]}  Rb5 {[%clk 0:00:07]} 57. Bc5 {[%clk 0:00:08]}  Rxc5 {[%clk 0:00:07]} 58. Kd4 {[%clk 0:00:09]}  Ra5 {[%clk 0:00:08]} 59. Ke3 {[%clk 0:00:10]}  Kf5 {[%clk 0:00:08]} 60. Kf2 {[%clk 0:00:11]}  Kf4 {[%clk 0:00:08]} 61. Kg1 {[%clk 0:00:12]} 0-1


[Site "https://www.chess.com"]

[Event "Titled Tuesday Blitz March 21 Early 2023"]
[White "Chernobay, Artem"]
[Black "Alekseenko, Kirill"]
[WhiteFideId "4167406"]
[BlackFideId "4135539"]
[WhiteElo "2474"]
[BlackElo "2683"]
[Result "0-1"]
[Round "02"]
[TimeControl "180+2"]
[Date "2023.03.21"]
[WhiteClock "0:00:03"]
[BlackClock "0:00:21"]

1. e4 {[%clk 0:02:58]}  e5 {[%clk 0:02:55]} 2. Nc3 {[%clk 0:02:52]}  Nc6 {[%clk 0:02:52]} 3. g3 {[%clk 0:02:49]}  Bc5 {[%clk 0:02:44]} 4. Bg2 {[%clk 0:02:48]}  a6 {[%clk 0:02:42]} 5. d3 {[%clk 0:02:45]}  d6 {[%clk 0:02:42]} 6. Nge2 {[%clk 0:02:44]}  Be6 {[%clk 0:02:32]} 7. Nd5 {[%clk 0:02:41]}  Nge7 {[%clk 0:02:28]} 8. c3 {[%clk 0:02:31]}  Qd7 {[%clk 0:02:27]} 9. d4 {[%clk 0:02:18]}  Ba7 {[%clk 0:02:20]} 10. f4 {[%clk 0:01:38]}  exd4 {[%clk 0:02:07]} 11. Nxe7 {[%clk 0:01:31]}  Nxe7 {[%clk 0:02:00]} 12. f5 {[%clk 0:01:24]}  Bc4 {[%clk 0:01:59]} 13. Nxd4 {[%clk 0:01:07]}  f6 {[%clk 0:01:53]} 14. b3 {[%clk 0:00:59]}  Bf7 {[%clk 0:01:52]} 15. c4 {[%clk 0:00:51]}  O-O-O {[%clk 0:01:51]} 16. O-O {[%clk 0:00:39]}  d5 {[%clk 0:01:29]} 17. cxd5 {[%clk 0:00:24]}  Nxd5 {[%clk 0:01:28]} 18. exd5 {[%clk 0:00:24]}  Bxd5 {[%clk 0:01:29]} 19. Be3 {[%clk 0:00:16]}  Bxg2 {[%clk 0:01:28]} 20. Kxg2 {[%clk 0:00:17]}  Bxd4 {[%clk 0:01:28]} 21. Bxd4 {[%clk 0:00:16]}  Qxd4 {[%clk 0:01:29]} 22. Qxd4 {[%clk 0:00:16]}  Rxd4 {[%clk 0:01:30]} 23. Rae1 {[%clk 0:00:15]}  Rhd8 {[%clk 0:01:26]} 24. Re7 {[%clk 0:00:15]}  R4d7 {[%clk 0:01:26]} 25. Rfe1 {[%clk 0:00:15]}  c6 {[%clk 0:01:27]} 26. Kf3 {[%clk 0:00:14]}  Kc7 {[%clk 0:01:18]} 27. h4 {[%clk 0:00:13]}  c5 {[%clk 0:01:15]} 28. g4 {[%clk 0:00:14]}  h6 {[%clk 0:00:55]} 29. Kf4 {[%clk 0:00:13]}  Rxe7 {[%clk 0:00:53]} 30. Rxe7+ {[%clk 0:00:14]}  Rd7 {[%clk 0:00:54]} 31. Re8 {[%clk 0:00:14]}  Rd4+ {[%clk 0:00:54]} 32. Kf3 {[%clk 0:00:14]}  b5 {[%clk 0:00:54]} 33. Re7+ {[%clk 0:00:14]}  Rd7 {[%clk 0:00:55]} 34. Re6 {[%clk 0:00:14]}  Kb7 {[%clk 0:00:51]} 35. g5 {[%clk 0:00:15]}  hxg5 {[%clk 0:00:51]} 36. hxg5 {[%clk 0:00:15]}  fxg5 {[%clk 0:00:50]} 37. Rg6 {[%clk 0:00:16]}  c4 {[%clk 0:00:49]} 38. bxc4 {[%clk 0:00:15]}  bxc4 {[%clk 0:00:50]} 39. Rxg5 {[%clk 0:00:15]}  Kb6 {[%clk 0:00:47]} 40. Ke4 {[%clk 0:00:13]}  c3 {[%clk 0:00:41]} 41. Rg3 {[%clk 0:00:13]}  Rc7 {[%clk 0:00:42]} 42. Rg1 {[%clk 0:00:11]}  c2 {[%clk 0:00:34]} 43. Rc1 {[%clk 0:00:11]}  Rc5 {[%clk 0:00:34]} 44. Kd4 {[%clk 0:00:11]}  Kc6 {[%clk 0:00:35]} 45. a4 {[%clk 0:00:09]}  Kd6 {[%clk 0:00:29]} 46. Ke4 {[%clk 0:00:08]}  Rc4+ {[%clk 0:00:27]} 47. Kd3 {[%clk 0:00:08]}  Kd5 {[%clk 0:00:26]} 48. a5 {[%clk 0:00:08]}  Rc8 {[%clk 0:00:22]} 49. Ke3 {[%clk 0:00:03]}  Ke5 {[%clk 0:00:21]} 0-1


[Site "https://www.chess.com"]

[Event "Titled Tuesday Blitz March 21 Early 2023"]
[White "Alvarez Calzadilla, Jose Avelino"]
[Black "Makarian, Rudik"]
[WhiteFideId "3526151"]
[BlackFideId "44105681"]
[WhiteElo "2310"]
[BlackElo "2436"]
[Result "0-1"]
[Round "02"]
[TimeControl "180+2"]
[Date "2023.03.21"]
[WhiteClock "0:00:11"]
[BlackClock "0:00:11"]

1. e4 {[%clk 0:03:00]}  c5 {[%clk 0:02:53]} 2. Nf3 {[%clk 0:02:59]}  Nc6 {[%clk 0:02:54]} 3. Bb5 {[%clk 0:02:57]}  e6 {[%clk 0:02:54]} 4. O-O {[%clk 0:02:55]}  Nd4 {[%clk 0:02:52]} 5. Nxd4 {[%clk 0:02:49]}  cxd4 {[%clk 0:02:53]} 6. c3 {[%clk 0:02:49]}  a6 {[%clk 0:02:53]} 7. Ba4 {[%clk 0:02:43]}  Bc5 {[%clk 0:02:51]} 8. b4 {[%clk 0:02:41]}  Ba7 {[%clk 0:02:49]} 9. Bb2 {[%clk 0:02:39]}  dxc3 {[%clk 0:02:44]} 10. Nxc3 {[%clk 0:02:38]}  Ne7 {[%clk 0:02:44]} 11. d4 {[%clk 0:02:37]}  O-O {[%clk 0:02:42]} 12. Bc2 {[%clk 0:02:32]}  d5 {[%clk 0:02:41]} 13. e5 {[%clk 0:02:31]}  Bd7 {[%clk 0:02:38]} 14. Re1 {[%clk 0:02:27]}  Rc8 {[%clk 0:02:38]} 15. Re3 {[%clk 0:02:26]}  g6 {[%clk 0:02:38]} 16. Rh3 {[%clk 0:02:22]}  Rc4 {[%clk 0:02:31]} 17. Qd2 {[%clk 0:02:14]}  f5 {[%clk 0:02:13]} 18. exf6 {[%clk 0:02:05]}  Rxf6 {[%clk 0:02:12]} 19. Ne2 {[%clk 0:01:38]}  Qf8 {[%clk 0:02:02]} 20. Nc1 {[%clk 0:01:15]}  e5 {[%clk 0:01:55]} 21. Re3 {[%clk 0:01:10]}  exd4 {[%clk 0:01:37]} 22. Re2 {[%clk 0:01:08]}  Bg4 {[%clk 0:01:32]} 23. Bd3 {[%clk 0:00:47]}  Bxe2 {[%clk 0:01:28]} 24. Nxe2 {[%clk 0:00:48]}  Rxf2 {[%clk 0:01:13]} 25. Qe1 {[%clk 0:00:39]}  Rf7 {[%clk 0:01:00]} 26. Bxc4 {[%clk 0:00:27]}  d3+ {[%clk 0:00:56]} 27. Bd4 {[%clk 0:00:27]}  dxe2 {[%clk 0:00:24]} 28. Bxa7 {[%clk 0:00:22]}  Rf1+ {[%clk 0:00:23]} 29. Qxf1 {[%clk 0:00:23]}  exf1=Q+ {[%clk 0:00:24]} 30. Rxf1 {[%clk 0:00:24]}  dxc4 {[%clk 0:00:17]} 31. Rxf8+ {[%clk 0:00:21]}  Kxf8 {[%clk 0:00:18]} 32. Kf2 {[%clk 0:00:13]}  Nd5 {[%clk 0:00:18]} 33. a3 {[%clk 0:00:10]}  Kf7 {[%clk 0:00:13]} 34. Kf3 {[%clk 0:00:09]}  Ke6 {[%clk 0:00:14]} 35. Ke4 {[%clk 0:00:09]}  Nc3+ {[%clk 0:00:14]} 36. Kd4 {[%clk 0:00:08]}  Nb5+ {[%clk 0:00:15]} 37. Kxc4 {[%clk 0:00:09]}  Nxa7 {[%clk 0:00:15]} 38. Kc5 {[%clk 0:00:10]}  Nc8 {[%clk 0:00:16]} 39. a4 {[%clk 0:00:10]}  Ke5 {[%clk 0:00:16]} 40. b5 {[%clk 0:00:10]}  axb5 {[%clk 0:00:17]} 41. axb5 {[%clk 0:00:11]}  Ke6 {[%clk 0:00:17]} 42. g3 {[%clk 0:00:09]}  Ke5 {[%clk 0:00:18]} 43. h3 {[%clk 0:00:09]}  Ke6 {[%clk 0:00:18]} 44. g4 {[%clk 0:00:10]}  Ke5 {[%clk 0:00:19]} 45. h4 {[%clk 0:00:10]}  Ke6 {[%clk 0:00:19]} 46. h5 {[%clk 0:00:10]}  gxh5 {[%clk 0:00:19]} 47. gxh5 {[%clk 0:00:11]}  h6 {[%clk 0:00:19]} 48. Kc4 {[%clk 0:00:11]}  Kd6 {[%clk 0:00:13]} 49. Kd4 {[%clk 0:00:11]}  b6 {[%clk 0:00:12]} 50. Ke4 {[%clk 0:00:11]}  Ne7 {[%clk 0:00:13]} 51. Kd4 {[%clk 0:00:11]}  Nf5+ {[%clk 0:00:11]} 0-1


[Site "https://www.chess.com"]

[Event "Titled Tuesday Blitz March 21 Early 2023"]
[White "Tari, Aryan"]
[Black "wqws"]
[WhiteFideId "1510045"]
[WhiteElo "2583"]
[BlackElo "2631"]
[Result "1-0"]
[Round "02"]
[TimeControl "180+2"]
[Date "2023.03.21"]
[WhiteClock "0:00:07"]
[BlackClock "0:00:05"]

1. Nf3 {[%clk 0:02:51]}  Nf6 {[%clk 0:02:57]} 2. c4 {[%clk 0:02:50]}  e6 {[%clk 0:02:56]} 3. Nc3 {[%clk 0:02:48]}  d5 {[%clk 0:02:54]} 4. e3 {[%clk 0:02:48]}  c5 {[%clk 0:02:54]} 5. cxd5 {[%clk 0:02:44]}  exd5 {[%clk 0:02:50]} 6. Bb5+ {[%clk 0:02:42]}  Nc6 {[%clk 0:02:50]} 7. O-O {[%clk 0:02:37]}  a6 {[%clk 0:02:50]} 8. Bxc6+ {[%clk 0:02:37]}  bxc6 {[%clk 0:02:51]} 9. b3 {[%clk 0:02:37]}  Bf5 {[%clk 0:02:44]} 10. Ba3 {[%clk 0:02:36]}  Bd3 {[%clk 0:02:35]} 11. Re1 {[%clk 0:02:34]}  Bd6 {[%clk 0:02:35]} 12. Na4 {[%clk 0:02:33]}  Nd7 {[%clk 0:02:10]} 13. Rc1 {[%clk 0:01:47]}  Qe7 {[%clk 0:01:55]} 14. Nb2 {[%clk 0:01:15]}  Bg6 {[%clk 0:01:53]} 15. d3 {[%clk 0:01:08]}  O-O {[%clk 0:01:52]} 16. e4 {[%clk 0:01:08]}  Qf6 {[%clk 0:01:42]} 17. Na4 {[%clk 0:01:07]}  dxe4 {[%clk 0:01:27]} 18. dxe4 {[%clk 0:01:06]}  Ne5 {[%clk 0:01:27]} 19. Nxe5 {[%clk 0:00:44]}  Bxe5 {[%clk 0:01:24]} 20. Qf3 {[%clk 0:00:37]}  Qxf3 {[%clk 0:01:04]} 21. gxf3 {[%clk 0:00:38]}  Bh5 {[%clk 0:01:05]} 22. Rxc5 {[%clk 0:00:37]}  f6 {[%clk 0:00:49]} 23. f4 {[%clk 0:00:37]}  Bd6 {[%clk 0:00:49]} 24. Rxh5 {[%clk 0:00:37]}  Bxa3 {[%clk 0:00:50]} 25. Rd1 {[%clk 0:00:35]}  Rfe8 {[%clk 0:00:47]} 26. f3 {[%clk 0:00:35]}  Rad8 {[%clk 0:00:43]} 27. Rxd8 {[%clk 0:00:33]}  Rxd8 {[%clk 0:00:44]} 28. Ra5 {[%clk 0:00:32]}  Rd1+ {[%clk 0:00:44]} 29. Kg2 {[%clk 0:00:30]}  Rd2+ {[%clk 0:00:45]} 30. Kh3 {[%clk 0:00:31]}  Rxa2 {[%clk 0:00:41]} 31. Rxa6 {[%clk 0:00:31]}  Bd6 {[%clk 0:00:38]} 32. Nc5 {[%clk 0:00:22]}  Rd2 {[%clk 0:00:33]} 33. Ne6 {[%clk 0:00:08]}  Kf7 {[%clk 0:00:33]} 34. e5 {[%clk 0:00:05]}  fxe5 {[%clk 0:00:29]} 35. Ng5+ {[%clk 0:00:04]}  Ke7 {[%clk 0:00:25]} 36. Ra7+ {[%clk 0:00:04]}  Ke8 {[%clk 0:00:22]} 37. Ne4 {[%clk 0:00:05]}  Rd4 {[%clk 0:00:21]} 38. Rxg7 {[%clk 0:00:05]}  exf4 {[%clk 0:00:18]} 39. Rxh7 {[%clk 0:00:05]}  Be7 {[%clk 0:00:19]} 40. Kg4 {[%clk 0:00:06]}  Rd3 {[%clk 0:00:19]} 41. h4 {[%clk 0:00:06]}  Rxb3 {[%clk 0:00:19]} 42. h5 {[%clk 0:00:07]}  Rb1 {[%clk 0:00:20]} 43. Kf5 {[%clk 0:00:07]}  Kd7 {[%clk 0:00:18]} 44. Nf6+ {[%clk 0:00:04]}  Kd6 {[%clk 0:00:18]} 45. Ne4+ {[%clk 0:00:04]}  Kd7 {[%clk 0:00:18]} 46. h6 {[%clk 0:00:03]}  Rh1 {[%clk 0:00:17]} 47. Nf6+ {[%clk 0:00:03]}  Kd6 {[%clk 0:00:16]} 48. Ne4+ {[%clk 0:00:04]}  Kd7 {[%clk 0:00:16]} 49. Nf6+ {[%clk 0:00:05]}  Kd6 {[%clk 0:00:15]} 50. Ng4 {[%clk 0:00:05]}  Rh5+ {[%clk 0:00:14]} 51. Kg6 {[%clk 0:00:04]}  Rg5+ {[%clk 0:00:14]} 52. Kf7 {[%clk 0:00:04]}  Rf5+ {[%clk 0:00:14]} 53. Kg8 {[%clk 0:00:04]}  Rf8+ {[%clk 0:00:12]} 54. Kg7 {[%clk 0:00:04]}  c5 {[%clk 0:00:11]} 55. Kg6 {[%clk 0:00:02]}  c4 {[%clk 0:00:11]} 56. Nf2 {[%clk 0:00:03]}  Rf6+ {[%clk 0:00:10]} 57. Kh5 {[%clk 0:00:03]}  Rf5+ {[%clk 0:00:10]} 58. Kg4 {[%clk 0:00:03]}  Re5 {[%clk 0:00:09]} 59. Ne4+ {[%clk 0:00:03]}  Kd7 {[%clk 0:00:09]} 60. Rh8 {[%clk 0:00:02]}  Re6 {[%clk 0:00:07]} 61. h7 {[%clk 0:00:02]}  Rh6 {[%clk 0:00:06]} 62. Ng5 {[%clk 0:00:02]}  Rh1 {[%clk 0:00:04]} 63. Nf7 {[%clk 0:00:01]}  Rg1+ {[%clk 0:00:04]} 64. Kf5 {[%clk 0:00:01]}  Rh1 {[%clk 0:00:04]} 65. Ne5+ {[%clk 0:00:01]}  Kd6 {[%clk 0:00:03]} 66. Nxc4+ {[%clk 0:00:02]}  Kc5 {[%clk 0:00:04]} 67. Nb6 {[%clk 0:00:03]}  Kxb6 {[%clk 0:00:03]} 68. Rb8+ {[%clk 0:00:03]}  Kc7 {[%clk 0:00:03]} 69. h8=Q {[%clk 0:00:04]}  Rxh8 {[%clk 0:00:04]} 70. Rxh8 {[%clk 0:00:05]}  Bd6 {[%clk 0:00:04]} 71. Rh7+ {[%clk 0:00:05]}  Kd8 {[%clk 0:00:04]} 72. Ke6 {[%clk 0:00:04]}  Bc5 {[%clk 0:00:04]} 73. Rd7+ {[%clk 0:00:05]}  Kc8 {[%clk 0:00:04]} 74. Rf7 {[%clk 0:00:05]}  Be3 {[%clk 0:00:04]} 75. Ke5 {[%clk 0:00:06]}  Kd8 {[%clk 0:00:05]} 76. Rxf4 {[%clk 0:00:05]}  Bxf4+ {[%clk 0:00:05]} 77. Kxf4 {[%clk 0:00:06]}  Ke7 {[%clk 0:00:05]} 78. Ke5 {[%clk 0:00:07]} 1-0


[Site "https://www.chess.com"]